Workbook

Sheet Лист1
A1: Школа | C1: МБОУ гимназия №3 г.Пролетарска | F1: Соглосовал: | G1: должность | H1: И.о. директора
A2: Типовое примерное меню приготавливаемых блюд | G2: фамилия | H2: Савченко О.Н.
A3: Возрастная категория | E3: 7-11 лет | G3: дата | H3: 1 | I3: 10 | J3: 2025
H4: день | I4: месяц | J4: год
A5: Неделя | B5: День недели | C5: Прием пищи | D5: Раздел меню | E5: Блюда | F5: Вес блюда, г | G5: Белки | H5: Жиры | I5: Углеводы | J5: Калорийность | K5: № рецептуры | L5: Цена
A6: 1 | B6: 1 | C6: Завтрак | D6: =[1]!B4 -> гор.блюдо | E6: Омлет натуральный/ икра кабачковая | F6: 210 | G6: 14.88 | H6: 16.84 | I6: 36.49 | J6: 313.7 | K6: 340.57 | L6: 70.3
D7: =[1]!B5 -> гор.напиток | E7: Чай с лимоном | F7: 219 | G7: 0.3 | H7: 0.05 | I7: 15.2 | J7: 60 | K7: 686 | L7: 7.1
D8: =[1]!B6 -> хлеб бел. | E8: Хлеб пшеничный йодированный | F8: 40 | G8: 3.04 | H8: 0.32 | I8: 23.2 | J8: 104.5 | L8: 2.92
D9: =[1]!B7 -> сладкое | E9: Мармелад фруктово-ягодный | F9: 40 | G9: 2.6 | H9: 3.68 | I9: 12.86 | J9: 138.24 | L9: 13.68
D10: итого | F10: =SUM(F6:F9) -> 509 | G10: =SUM(G6:G9) -> 20.82 | H10: =SUM(H6:H9) -> 20.89 | I10: =SUM(I6:I9) -> 87.75 | J10: =SUM(J6:J9) -> 616.44 | L10: =SUM(L6:L9) -> 94
A11: =A6 -> 1 | B11: =B6 -> 1 | C11: Обед | D11: закуска
D12: 1 блюдо
D13: 2 блюдо
D14: гарнир
D15: напиток
D16: хлеб бел.
D17: хлеб черн.
D19: итого
A20: =A5 -> Неделя | B20: =B5 -> День недели | C20: Итого за день:
A21: 1 | B21: 2 | C21: Завтрак | D21: гор.блюдо | E21: Тефтели из птицы с соусом/Макаронные изделия отварные/Овощи свежие (помидоры) | F21: 350 | G21: 16.41 | H21: 18.62 | I21: 50.15 | J21: 406.97 | K21: 462.332 | L21: 82.28
D22: гор.напиток | E22: Кофейный напиток на молоке сгущенном | F22: 200 | G22: 2.67 | H22: 3.48 | I22: 15.2 | J22: 91.2 | K22: 690 | L22: 8.8
D23: хлеб бел. | E23: Хлеб пшеничный йодированный | F23: 40 | G23: 3.04 | H23: 0.32 | I23: 23.2 | J23: 104.5 | L23: 2.92
D24: итого | F24: =SUM(F21:F23) -> 590 | G24: =SUM(G21:G23) -> 22.12 | H24: =SUM(H21:H23) -> 22.42 | I24: =SUM(I21:I23) -> 88.55 | J24: =SUM(J21:J23) -> 602.67 | L24: =SUM(L21:L23) -> 94
A25: =A21 -> 1 | B25: =B21 -> 2 | C25: Обед | D25: закуска
D26: 1 блюдо
D27: 2 блюдо
D28: гарнир
D29: напиток
D30: хлеб бел.
D31: хлеб черн.
D34: итого | F34: =SUM(F25:F33) -> 0 | G34: =SUM(G25:G33) -> 0 | H34: =SUM(H25:H33) -> 0 | I34: =SUM(I25:I33) -> 0 | J34: =SUM(J25:J33) -> 0 | L34: 0
A35: =A21 -> 1 | B35: =B21 -> 2 | C35: Итого за день: | F35: =F24+F34 -> 590 | G35: =G24+G34 -> 22.12 | H35: 22.42 | I35: =I24+I34 -> 88.55 | J35: =J24+J34 -> 602.67 | L35: 94
A36: 1 | B36: 3 | C36: Завтрак | D36: ='[2]1'!B4 -> гор.блюдо | E36: Каша жидкая молочная пшённая/запеканка из творога с рисом и молоком сгущенным | F36: 370 | G36: 22.11 | H36: 22.25 | I36: 78.48 | J36: 610.9 | K36: 54-24к/315 | L36: 90.4
D37: ='[2]1'!B6 -> гор.напиток | E37: Чай с сахаром | F37: 212 | G37: 0.19 | H37: 0.04 | I37: 10.98 | J37: 43.9 | K37: 685 | L37: 3.6
D39: итого | F39: =SUM(F36:F38) -> 582 | G39: =SUM(G36:G38) -> 22.3 | H39: =SUM(H36:H38) -> 22.29 | I39: =SUM(I36:I38) -> 89.46 | J39: =SUM(J36:J38) -> 654.8 | L39: =SUM(L36:L38) -> 94
A40: =A36 -> 1 | B40: =B36 -> 3 | C40: Обед | D40: закуска
D41: 1 блюдо
D42: 2 блюдо
D43: гарнир
D44: напиток
D45: хлеб бел.
D46: хлеб черн.
D49: итого | G49: =SUM(G40:G48) -> 0 | H49: =SUM(H40:H48) -> 0 | I49: =SUM(I40:I48) -> 0 | J49: =SUM(J40:J48) -> 0 | L49: 0
A50: =A36 -> 1 | B50: =B36 -> 3 | C50: Итого за день: | F50: =F39+F49 -> 582 | G50: =G39+G49 -> 22.3 | H50: =H39+H49 -> 22.29 | I50: =I39+I49 -> 89.46 | J50: =J39+J49 -> 654.8 | L50: 94
A51: 1 | B51: 4 | C51: Завтрак | D51: гор.блюдо | E51: Гуляш из птицы, Каша вязкая пшеничная/Салат из квашенной капусты | F51: 300 | G51: 17.46 | H51: 20.48 | I51: 54.89 | J51: 436.11 | K51: 437, 510,45 | L51: 86.9
D52: гор.напиток | E52: Кофейный напиток | F52: 200 | G52: 1.14 | H52: 0.66 | I52: 6.82 | J52: 37.8 | K52: 692 | L52: 4.18
D53: хлеб бел. | E53: Хлеб пшеничный йодированный | F53: 40 | G53: 3.04 | H53: 0.32 | I53: 23.2 | J53: 104.5 | L53: 2.92
D54: итого | F54: =SUM(F51:F53) -> 540 | G54: 21.64 | H54: 21.46 | I54: 84.91 | J54: 578.41 | L54: 94
A55: =A51 -> 1 | B55: =B51 -> 4 | C55: Обед | D55: закуска
D56: 1 блюдо
D57: 2 блюдо
D58: гарнир
D59: напиток
D60: хлеб бел.
D61: хлеб черн.
D62: итого | F62: =SUM(F55:F61) -> 0 | G62: =SUM(G55:G61) -> 0 | H62: =SUM(H55:H61) -> 0 | I62: =SUM(I55:I61) -> 0 | J62: =SUM(J55:J61) -> 0 | L62: =SUM(L55:L61) -> 0
A63: =A51 -> 1 | B63: =B51 -> 4 | C63: Итого за день: | F63: =F54+F62 -> 540 | G63: =G54+G62 -> 21.64 | H63: =H54+H62 -> 21.46 | I63: =I54+I62 -> 84.91 | J63: =J54+J62 -> 578.41 | L63: =L54+L62 -> 94
A64: 1 | B64: 5 | C64: Завтрак | D64: гор.блюдо | E64: Котлеты рубленые из птицы, Пюре картофельное, Овощи соленые (огурцы) | F64: 270 | G64: 16.74 | H64: 19.28 | I64: 44.56 | J64: 436.28 | K64: 498, 520 | L64: 87.48
D65: гор.напиток | E65: Чай с сахаром | F65: 212 | G65: 0.19 | H65: 0.04 | I65: 10.98 | J65: 43.9 | K65: 685 | L65: 3.6
D66: хлеб бел. | E66: Хлеб пшеничный йодированный | F66: 40 | G66: 3.04 | H66: 0.32 | I66: 23.2 | J66: 104.5 | L66: 2.92
D67: итого | F67: =SUM(F64:F66) -> 522 | G67: =SUM(G64:G66) -> 19.97 | H67: =SUM(H64:H66) -> 19.64 | I67: =SUM(I64:I66) -> 78.74 | J67: =SUM(J64:J66) -> 584.68 | L67: =SUM(L64:L66) -> 94
A68: =A64 -> 1 | B68: =B64 -> 5 | C68: Обед | D68: закуска
D69: 1 блюдо
D70: 2 блюдо
D71: гарнир
D72: напиток
D73: хлеб бел.
D74: хлеб черн.
D77: итого | F77: =SUM(F68:F76) -> 0 | G77: =SUM(G68:G76) -> 0 | H77: =SUM(H68:H76) -> 0 | I77: =SUM(I68:I76) -> 0 | J77: =SUM(J68:J76) -> 0 | L77: =SUM(L68:L76) -> 0
A78: =A64 -> 1 | B78: =B64 -> 5 | C78: Итого за день: | F78: =F67+F77 -> 522 | G78: =G67+G77 -> 19.97 | H78: =H67+H77 -> 19.64 | I78: =I67+I77 -> 78.74 | J78: =J67+J77 -> 584.68 | L78: =L67+L77 -> 94
A79: 2 | B79: 1 | C79: Завтрак | D79: гор.блюдо | E79: Плов из птицы,Салат из белокочанной капусты | F79: 240 | G79: 14.73 | H79: 11.65 | I79: 35.5 | J79: 352.1 | K79: 54-12м,43 | L79: 56.48
D80: гор.напиток | E80: Чай с сахаром | F80: 212 | G80: 0.19 | H80: 0.04 | I80: 10.98 | J80: 43.9 | K80: 685 | L80: 3.6
D81: хлеб бел. | E81: Хлеб пшеничный йодированный | F81: 40 | G81: 3.04 | H81: 0.32 | I81: 23.2 | J81: 104.5 | L81: 2.92
D82: сладкое | E82: Пирожок с фруктовой начинкой | F82: 80 | G82: 4.64 | H82: 10.8 | I82: 20.65 | J82: 206.25 | L82: 31
D83: итого | F83: =SUM(F79:F82) -> 572 | G83: 22.6 | H83: 22.81 | I83: 90.33 | J83: 706.75 | K83: 685 | L83: 94
A84: =A79 -> 2 | B84: =B79 -> 1 | C84: Обед | D84: закуска
D85: 1 блюдо
D86: 2 блюдо
D87: гарнир
D88: напиток
D89: хлеб бел.
D90: хлеб черн.
D93: итого | F93: =SUM(F84:F92) -> 0 | G93: =SUM(G84:G92) -> 0 | H93: 0 | I93: 0 | J93: 0 | L93: =SUM(L84:L92) -> 0
A94: =A79 -> 2 | B94: =B79 -> 1 | C94: Итого за день: | F94: =F83+F93 -> 572 | G94: =G83+G93 -> 22.6 | H94: =H83+H93 -> 22.81 | I94: =I83+I93 -> 90.33 | J94: =J83+J93 -> 706.75 | L94: =L83+L93 -> 94
A95: 2 | B95: 2 | C95: Завтрак | D95: гор.блюдо | E95: Котлеты мясо-картофельные по-хлыновски, Макаронные изделия отварные,салат из квашенной капусты | F95: 290 | G95: 14.48 | H95: 21.06 | I95: 47.96 | J95: 398.6 | K95: 454,332, 54-3 соус, 45 | L95: 82.28
D96: гор.напиток | E96: Кофейный напиток на молоке сгущенном | F96: 200 | G96: 3.87 | H96: 3.48 | I96: 15.2 | J96: 91.2 | K96: 690 | L96: 8.8
D97: хлеб бел. | E97: Хлеб пшеничный йодированный | F97: 40 | G97: 3.04 | H97: 0.32 | I97: 23.2 | J97: 104.5 | L97: 2.92
D98: итого | F98: =SUM(F95:F97) -> 530 | G98: =SUM(G95:G97) -> 21.39 | H98: =SUM(H95:H97) -> 24.86 | I98: =SUM(I95:I97) -> 86.36 | J98: =SUM(J95:J97) -> 594.3 | L98: =SUM(L95:L97) -> 94
A99: =A95 -> 2 | B99: =B95 -> 2 | C99: Обед | D99: закуска
D100: 1 блюдо
D101: 2 блюдо
D102: гарнир
D103: напиток
D104: хлеб бел.
D105: хлеб черн.
D108: итого | F108: =SUM(F99:F107) -> 0 | G108: =SUM(G99:G107) -> 0 | H108: 0 | I108: 0 | J108: 0 | L108: =SUM(L99:L107) -> 0
A109: =A95 -> 2 | B109: =B95 -> 2 | C109: Итого за день: | F109: =F98+F108 -> 530 | G109: =G98+G108 -> 21.39 | H109: =H98+H108 -> 24.86 | I109: =I98+I108 -> 86.36 | J109: =J98+J108 -> 594.3 | L109: 94
A110: 2 | B110: 3 | C110: Завтрак | D110: гор.блюдо | E110: Каша вязкая молочная "Дружба", Блинчики с фруктовой начинкой | F110: 320 | G110: 17.69 | H110: 18.22 | I110: 66.35 | J110: 453 | K110: 302, 489 | L110: 69.82
D111: гор.напиток | E111: Кофейный напиток | F111: 200 | G111: 1.14 | H111: 0.66 | I111: 6.82 | J111: 37.8 | K111: 692 | L111: 4.18
D112: фрукты | E112: Фрукты свежие (яблоки) | F112: 150 | G112: 0.6 | H112: 0.6 | I112: 4.63 | J112: 66.6 | K112: 386 | L112: 20
D113: итого | F113: =SUM(F110:F112) -> 670 | G113: =SUM(G110:G112) -> 19.43 | H113: =SUM(H110:H112) -> 19.48 | I113: =SUM(I110:I112) -> 77.8 | J113: =SUM(J110:J112) -> 557.4 | L113: =SUM(L110:L112) -> 94
A114: =A110 -> 2 | B114: =B110 -> 3 | C114: Обед | D114: закуска
D115: 1 блюдо
D116: 2 блюдо
D117: гарнир
D118: напиток
D119: хлеб бел.
D120: хлеб черн.
D123: итого | F123: =SUM(F114:F122) -> 0 | G123: =SUM(G114:G122) -> 0 | H123: 0 | I123: 0 | J123: 0 | L123: =SUM(L114:L122) -> 0
A124: =A110 -> 2 | B124: =B110 -> 3 | C124: Итого за день: | F124: =F113+F123 -> 670 | G124: =G113+G123 -> 19.43 | H124: =H113+H123 -> 19.48 | I124: =I113+I123 -> 77.8 | J124: =J113+J123 -> 557.4 | L124: 94
A125: 2 | B125: 4 | C125: Завтрак | D125: гор.блюдо | E125: Ёжики из птицы,Каша рассыпчатая гречневая,Каша рассыпчатая гречневая,Свекла отварная дольками | F125: 330 | G125: 18.42 | H125: 21.47 | I125: 60.86 | J125: 477.7 | K125: 54-15М,508, 54-28 | L125: 87.48
D126: гор.напиток | E126: Чай с сахаром | F126: 212 | G126: 0.19 | H126: 0.04 | I126: 10.98 | J126: 43.9 | K126: 685 | L126: 3.6
D127: хлеб бел. | E127: Хлеб пшеничный йодированный | F127: 40 | G127: 3.04 | H127: 0.32 | I127: 23.2 | J127: 104.5 | L127: 2.92
D128: итого | F128: =SUM(F125:F127) -> 582 | G128: =SUM(G125:G127) -> 21.65 | H128: =SUM(H125:H127) -> 21.83 | I128: =SUM(I125:I127) -> 95.04 | J128: =SUM(J125:J127) -> 626.1 | L128: =SUM(L125:L127) -> 94
A129: =A125 -> 2 | B129: =B125 -> 4 | C129: Обед | D129: закуска
D130: 1 блюдо
D131: 2 блюдо
D132: гарнир
D133: напиток
D134: хлеб бел.
D135: хлеб черн.
D138: итого | F138: =SUM(F129:F137) -> 0 | G138: =SUM(G129:G137) -> 0 | H138: 0 | I138: 0 | J138: 0 | L138: =SUM(L129:L137) -> 0
A139: =A125 -> 2 | B139: =B125 -> 4 | C139: Итого за день: | F139: =F128+F138 -> 582 | G139: =G128+G138 -> 21.65 | H139: =H128+H138 -> 21.83 | I139: =I128+I138 -> 95.04 | J139: =J128+J138 -> 626.1 | L139: 94
A140: 2 | B140: 5 | C140: Завтрак | D140: гор.блюдо | E140: Рыба, тушеная в томате с овощами , Пюре картофельное, Овощи соленые (огурцы) | F140: 275 | G140: 14.69 | H140: 18 | I140: 47.46 | J140: 420.85 | K140: 374, 520 | L140: 87.48
D141: гор.напиток | E141: Чай с сахаром | F141: 212 | G141: 0.19 | H141: 0.04 | I141: 6.42 | J141: 43.9 | K141: 685 | L141: 3.6
D142: хлеб бел. | E142: Хлеб пшеничный йодированный | F142: 40 | G142: 3.04 | H142: 0.32 | I142: 23.2 | J142: 104.5 | L142: 2.92
D143: итого | F143: =SUM(F140:F142) -> 527 | G143: =SUM(G140:G142) -> 17.92 | H143: =SUM(H140:H142) -> 18.36 | I143: =SUM(I140:I142) -> 77.08 | J143: =SUM(J140:J142) -> 569.25 | L143: =SUM(L140:L142) -> 94
A144: =A140 -> 2 | B144: =B140 -> 5 | C144: Обед | D144: закуска
D145: 1 блюдо
D146: 2 блюдо
D147: гарнир
D148: напиток
D149: хлеб бел.
D150: хлеб черн.
D153: итого | F153: =SUM(F144:F152) -> 0 | G153: =SUM(G144:G152) -> 0 | H153: 0 | I153: 0 | J153: 0 | L153: =SUM(L144:L152) -> 0
A154: =A140 -> 2 | B154: =B140 -> 5 | C154: Итого за день: | F154: =F143+F153 -> 527 | G154: =G143+G153 -> 17.92 | H154: =H143+H153 -> 18.36 | I154: =I143+I153 -> 77.08 | J154: =J143+J153 -> 569.25 | L154: 94
